[Event "Early-Titled-Tuesday-Blitz-February-13-2024"]
[Site "Chess.com"]
[Date "2024.02.13"]
[Round "8"]
[White "platy3"]
[Black "Onischuk_V"]
[Result "1-0"]
[WhiteElo "2938"]
[BlackElo "2792"]
[TimeControl "180+1"]
[EndTime "9:32:03 PST"]
[Termination "platy3 won on time"]

1. e4 {[%clk 0:03:00.9]} 1... d6 {[%clk 0:02:59.7]} 2. d4 {[%clk 0:03:00.3]}
2... Nf6 {[%clk 0:02:59.7]} 3. Nc3 {[%clk 0:03:00.9]} 3... g6 {[%clk 0:02:58.8]}
4. Bg5 {[%clk 0:02:58]} 4... Bg7 {[%clk 0:02:58.9]} 5. Qd2 {[%clk 0:02:58.1]}
5... h6 {[%clk 0:02:58.9]} 6. Bf4 {[%clk 0:02:50.9]} 6... Nc6 {[%clk 0:02:53]}
7. O-O-O {[%clk 0:02:48.3]} 7... g5 {[%clk 0:02:51.2]} 8. Be3 {[%clk 0:02:46.4]}
8... Ng4 {[%clk 0:02:49.7]} 9. h4 {[%clk 0:02:46.2]} 9... Nxe3 {[%clk
0:02:26.1]} 10. Qxe3 {[%clk 0:02:47.1]} 10... gxh4 {[%clk 0:02:25.8]} 11. f4
{[%clk 0:02:41.1]} 11... Bd7 {[%clk 0:02:00.3]} 12. Nf3 {[%clk 0:02:39.4]} 12...
e6 {[%clk 0:01:54]} 13. e5 {[%clk 0:02:36.2]} 13... Qe7 {[%clk 0:01:44.7]} 14.
Rxh4 {[%clk 0:02:24.6]} 14... a6 {[%clk 0:01:41.7]} 15. Bd3 {[%clk 0:02:24.2]}
15... Nb4 {[%clk 0:01:29.5]} 16. Be4 {[%clk 0:02:12.6]} 16... d5 {[%clk
0:01:25.1]} 17. f5 {[%clk 0:01:56.9]} 17... dxe4 {[%clk 0:01:21.9]} 18. f6
{[%clk 0:01:56.8]} 18... Bxf6 {[%clk 0:01:21]} 19. exf6 {[%clk 0:01:56.8]} 19...
Qxf6 {[%clk 0:01:20.9]} 20. Nxe4 {[%clk 0:01:55.8]} 20... Qe7 {[%clk 0:01:19.4]}
21. Qb3 {[%clk 0:01:31.1]} 21... Bc6 {[%clk 0:01:12.4]} 22. a3 {[%clk
0:01:25.3]} 22... Nd5 {[%clk 0:01:03.7]} 23. Rdh1 {[%clk 0:01:18]} 23... Nb6
{[%clk 0:00:44.6]} 24. Ne5 {[%clk 0:01:04.5]} 24... Bxe4 {[%clk 0:00:42.5]} 25.
Rxe4 {[%clk 0:01:05.4]} 25... O-O-O {[%clk 0:00:41.3]} 26. Qf3 {[%clk 0:01:04]}
26... f5 {[%clk 0:00:37.9]} 27. Reh4 {[%clk 0:01:00.5]} 27... Rdg8 {[%clk
0:00:31.4]} 28. Kb1 {[%clk 0:01:00.2]} 28... Qg7 {[%clk 0:00:26]} 29. g4 {[%clk
0:00:57.8]} 29... fxg4 {[%clk 0:00:21.3]} 30. Rxg4 {[%clk 0:00:58.7]} 30... Qh7
{[%clk 0:00:19.5]} 31. Qf6 {[%clk 0:00:54.9]} 31... Rxg4 {[%clk 0:00:16.8]} 32.
Nxg4 {[%clk 0:00:53.1]} 32... h5 {[%clk 0:00:15.6]} 33. Qxe6+ {[%clk 0:00:43.2]}
33... Kb8 {[%clk 0:00:15.6]} 34. Nf6 {[%clk 0:00:41.1]} 34... Qg7 {[%clk
0:00:07.5]} 35. Qe5 {[%clk 0:00:20.6]} 1-0

[Event "Early-Titled-Tuesday-Blitz-February-13-2024"]
[Site "Chess.com"]
[Date "2024.02.13"]
[Round "8"]
[White "Binary010"]
[Black "jocmil"]
[Result "1-0"]
[WhiteElo "2905"]
[BlackElo "2748"]
[TimeControl "180+1"]
[EndTime "9:32:03 PST"]
[Termination "Binary010 won by resignation"]

1. e4 {[%clk 0:03:00.9]} 1... c6 {[%clk 0:02:59.2]} 2. d4 {[%clk 0:03:00.4]}
2... d5 {[%clk 0:03:00.1]} 3. e5 {[%clk 0:03:00.9]} 3... Bf5 {[%clk 0:02:59.6]}
4. Nf3 {[%clk 0:03:01.2]} 4... e6 {[%clk 0:02:57.9]} 5. Be2 {[%clk 0:03:01.6]}
5... Bb4+ {[%clk 0:02:58.1]} 6. c3 {[%clk 0:02:53.9]} 6... Ba5 {[%clk
0:02:57.9]} 7. O-O {[%clk 0:02:54.7]} 7... Ne7 {[%clk 0:02:57]} 8. a4 {[%clk
0:02:53.3]} 8... Bc7 {[%clk 0:02:56.1]} 9. Na3 {[%clk 0:02:47.8]} 9... O-O
{[%clk 0:02:55.9]} 10. Nc2 {[%clk 0:02:46.1]} 10... Nd7 {[%clk 0:02:56.2]} 11.
Ne3 {[%clk 0:02:42.5]} 11... f6 {[%clk 0:02:55.8]} 12. exf6 {[%clk 0:02:35.3]}
12... Nxf6 {[%clk 0:02:46.2]} 13. Nxf5 {[%clk 0:02:35.1]} 13... Nxf5 {[%clk
0:02:43.5]} 14. Bd3 {[%clk 0:02:34.9]} 14... Ne4 {[%clk 0:02:30.4]} 15. Qe2
{[%clk 0:02:00.3]} 15... Nh4 {[%clk 0:01:53.6]} 16. Bxe4 {[%clk 0:01:57.2]}
16... dxe4 {[%clk 0:01:48.3]} 17. Nxh4 {[%clk 0:01:57.1]} 17... Qxh4 {[%clk
0:01:47.8]} 18. g3 {[%clk 0:01:57.3]} 18... Qh3 {[%clk 0:01:37.9]} 19. Qxe4
{[%clk 0:01:57.3]} 19... Rf7 {[%clk 0:01:32.2]} 20. Bd2 {[%clk 0:01:48.8]} 20...
Raf8 {[%clk 0:01:26.9]} 21. Rae1 {[%clk 0:01:28]} 21... Rf6 {[%clk 0:01:04.6]}
22. Qg2 {[%clk 0:01:14.6]} 22... Qh5 {[%clk 0:01:03.4]} 23. f4 {[%clk
0:01:11.6]} 23... Qa5 {[%clk 0:00:53.6]} 24. b3 {[%clk 0:01:06.4]} 24... Qb6
{[%clk 0:00:46.6]} 25. b4 {[%clk 0:00:48.5]} 25... Qa6 {[%clk 0:00:45.3]} 26. a5
{[%clk 0:00:48]} 26... Qc4 {[%clk 0:00:41.2]} 27. Qe2 {[%clk 0:00:46.4]} 27...
Qxe2 {[%clk 0:00:25]} 28. Rxe2 {[%clk 0:00:47.3]} 28... g5 {[%clk 0:00:24.9]}
29. Ref2 {[%clk 0:00:44.2]} 29... gxf4 {[%clk 0:00:24.9]} 30. Bxf4 {[%clk
0:00:43.8]} 30... Bxf4 {[%clk 0:00:24.9]} 31. Rxf4 {[%clk 0:00:43.7]} 31... Rxf4
{[%clk 0:00:23.3]} 32. Rxf4 {[%clk 0:00:43.5]} 32... Rxf4 {[%clk 0:00:23.8]} 33.
gxf4 {[%clk 0:00:43.6]} 33... Kf7 {[%clk 0:00:23.9]} 34. Kf2 {[%clk 0:00:40.5]}
34... Kf6 {[%clk 0:00:24.2]} 35. Kf3 {[%clk 0:00:35.6]} 35... Kf5 {[%clk
0:00:24.3]} 36. h3 {[%clk 0:00:36]} 36... b5 {[%clk 0:00:19.6]} 37. axb6 {[%clk
0:00:28.6]} 37... axb6 {[%clk 0:00:19.3]} 38. c4 {[%clk 0:00:27.9]} 38... b5
{[%clk 0:00:18.6]} 39. cxb5 {[%clk 0:00:22.5]} 39... cxb5 {[%clk 0:00:18.4]} 40.
Ke3 {[%clk 0:00:23.2]} 40... Kg6 {[%clk 0:00:12.7]} 41. Ke4 {[%clk 0:00:23.1]}
41... Kh5 {[%clk 0:00:13.1]} 42. Ke5 {[%clk 0:00:22.8]} 42... Kh4 {[%clk
0:00:13.4]} 43. Kxe6 {[%clk 0:00:22.9]} 1-0

[Event "Early-Titled-Tuesday-Blitz-February-13-2024"]
[Site "Chess.com"]
[Date "2024.02.13"]
[Round "8"]
[White "jefferyx"]
[Black "Radzio1987"]
[Result "1-0"]
[WhiteElo "3025"]
[BlackElo "2913"]
[TimeControl "180+1"]
[EndTime "9:32:04 PST"]
[Termination "jefferyx won by resignation"]

1. d4 {[%clk 0:03:00.9]} 1... Nf6 {[%clk 0:02:59.4]} 2. c4 {[%clk 0:03:01.4]}
2... e6 {[%clk 0:02:59.8]} 3. Nc3 {[%clk 0:03:02]} 3... Bb4 {[%clk 0:02:59.7]}
4. Nf3 {[%clk 0:03:02.7]} 4... b6 {[%clk 0:02:58.5]} 5. e3 {[%clk 0:03:00.2]}
5... Bb7 {[%clk 0:02:56.6]} 6. Bd3 {[%clk 0:03:00.6]} 6... c5 {[%clk 0:02:56.9]}
7. O-O {[%clk 0:03:00.3]} 7... cxd4 {[%clk 0:02:56.3]} 8. exd4 {[%clk
0:02:59.5]} 8... O-O {[%clk 0:02:55.8]} 9. Na4 {[%clk 0:02:57.4]} 9... Be7
{[%clk 0:02:51.8]} 10. a3 {[%clk 0:02:52.3]} 10... d6 {[%clk 0:02:39.9]} 11. Bf4
{[%clk 0:02:51.1]} 11... Nbd7 {[%clk 0:02:39.1]} 12. Re1 {[%clk 0:02:51.1]}
12... Re8 {[%clk 0:02:39]} 13. Nc3 {[%clk 0:02:49]} 13... Bf8 {[%clk 0:02:37.7]}
14. h3 {[%clk 0:02:40.9]} 14... a6 {[%clk 0:02:37.1]} 15. b4 {[%clk 0:02:39.7]}
15... h6 {[%clk 0:02:37.1]} 16. Bh2 {[%clk 0:02:34.8]} 16... Rc8 {[%clk
0:02:33.5]} 17. Nd2 {[%clk 0:02:31.9]} 17... e5 {[%clk 0:02:27.2]} 18. dxe5
{[%clk 0:02:18.3]} 18... Nxe5 {[%clk 0:02:20.9]} 19. Bf1 {[%clk 0:02:17.2]}
19... Qc7 {[%clk 0:02:00.9]} 20. Rc1 {[%clk 0:02:15.4]} 20... Qb8 {[%clk
0:02:00]} 21. Nde4 {[%clk 0:01:57.3]} 21... Nxe4 {[%clk 0:01:41.3]} 22. Nxe4
{[%clk 0:01:58.2]} 22... Rcd8 {[%clk 0:01:41.4]} 23. Nc3 {[%clk 0:01:52.2]}
23... Bc6 {[%clk 0:01:23.6]} 24. Qd4 {[%clk 0:01:49.8]} 24... b5 {[%clk
0:01:10.9]} 25. cxb5 {[%clk 0:01:32.1]} 25... axb5 {[%clk 0:01:08.1]} 26. Bg3
{[%clk 0:01:26.2]} 26... Qb7 {[%clk 0:01:06.8]} 27. a4 {[%clk 0:00:38.5]} 27...
bxa4 {[%clk 0:01:01.6]} 28. b5 {[%clk 0:00:39.4]} 28... Bd7 {[%clk 0:01:01.9]}
29. Qxa4 {[%clk 0:00:26.3]} 29... Rc8 {[%clk 0:00:52.5]} 30. Qa6 {[%clk
0:00:24]} 30... Qc7 {[%clk 0:00:21.9]} 31. b6 {[%clk 0:00:23]} 31... Qb8 {[%clk
0:00:21.7]} 32. Nd5 {[%clk 0:00:20.9]} 32... Bxh3 {[%clk 0:00:11.7]} 33. Bxe5
{[%clk 0:00:20]} 33... Rxc1 {[%clk 0:00:11.5]} 34. Rxc1 {[%clk 0:00:19]} 34...
Rxe5 {[%clk 0:00:11.5]} 35. gxh3 {[%clk 0:00:19.7]} 35... Rxd5 {[%clk
0:00:11.8]} 36. Rc8 {[%clk 0:00:19.6]} 36... Rg5+ {[%clk 0:00:10.6]} 37. Bg2
{[%clk 0:00:16.5]} 37... Ra5 {[%clk 0:00:08.8]} 38. Rxf8+ {[%clk 0:00:16.3]} 1-0

[Event "Early-Titled-Tuesday-Blitz-February-13-2024"]
[Site "Chess.com"]
[Date "2024.02.13"]
[Round "8"]
[White "kushagramohan"]
[Black "profedechess93"]
[Result "0-1"]
[WhiteElo "2835"]
[BlackElo "2654"]
[TimeControl "180+1"]
[EndTime "9:32:06 PST"]
[Termination "profedechess93 won by checkmate"]

1. e4 {[%clk 0:02:53.7]} 1... e6 {[%clk 0:03:00.2]} 2. d4 {[%clk 0:02:53.2]}
2... d5 {[%clk 0:03:00.8]} 3. Nd2 {[%clk 0:02:53.9]} 3... Be7 {[%clk 0:03:01]}
4. c3 {[%clk 0:02:52.9]} 4... dxe4 {[%clk 0:03:00.5]} 5. Nxe4 {[%clk 0:02:53.1]}
5... Nf6 {[%clk 0:03:01.4]} 6. Nxf6+ {[%clk 0:02:51.9]} 6... Bxf6 {[%clk
0:03:02.3]} 7. Nf3 {[%clk 0:02:52.8]} 7... c5 {[%clk 0:03:02.3]} 8. Bb5+ {[%clk
0:02:49.6]} 8... Bd7 {[%clk 0:02:58.1]} 9. Bd3 {[%clk 0:02:49.2]} 9... Bc6
{[%clk 0:02:56.7]} 10. O-O {[%clk 0:02:36.6]} 10... cxd4 {[%clk 0:02:55.9]} 11.
Nxd4 {[%clk 0:02:36.5]} 11... O-O {[%clk 0:02:47]} 12. Nxc6 {[%clk 0:02:34.7]}
12... Nxc6 {[%clk 0:02:47.9]} 13. Be3 {[%clk 0:02:32.2]} 13... Qc7 {[%clk
0:02:35.8]} 14. Be4 {[%clk 0:02:31.5]} 14... Ne5 {[%clk 0:02:17.6]} 15. h3
{[%clk 0:02:29.5]} 15... Nc4 {[%clk 0:02:17]} 16. Bc1 {[%clk 0:02:26.1]} 16...
Rfd8 {[%clk 0:02:11.3]} 17. Qc2 {[%clk 0:02:26.2]} 17... g6 {[%clk 0:02:07]} 18.
Bf3 {[%clk 0:02:19.4]} 18... Rac8 {[%clk 0:02:06.3]} 19. Be2 {[%clk 0:02:17.9]}
19... b5 {[%clk 0:02:04.5]} 20. Rb1 {[%clk 0:02:13.7]} 20... a6 {[%clk
0:01:57.6]} 21. a4 {[%clk 0:02:12.1]} 21... Bg7 {[%clk 0:01:52.3]} 22. axb5
{[%clk 0:02:10.1]} 22... axb5 {[%clk 0:01:52.3]} 23. Bg5 {[%clk 0:01:59.7]}
23... Rd5 {[%clk 0:01:51.9]} 24. Bc1 {[%clk 0:01:55]} 24... Qc5 {[%clk
0:01:50.4]} 25. Ra1 {[%clk 0:01:34.2]} 25... Rcd8 {[%clk 0:01:48.7]} 26. Bf3
{[%clk 0:01:16.5]} 26... Rf5 {[%clk 0:01:19.8]} 27. Be4 {[%clk 0:01:07.7]} 27...
Rh5 {[%clk 0:01:12.5]} 28. Bf4 {[%clk 0:00:54]} 28... Rh4 {[%clk 0:01:08.1]} 29.
Bg3 {[%clk 0:00:47.1]} 29... Rd2 {[%clk 0:01:08]} 30. Ra8+ {[%clk 0:00:38.9]}
30... Bf8 {[%clk 0:01:08.2]} 31. Bxh4 {[%clk 0:00:33.1]} 31... Rxc2 {[%clk
0:01:07.5]} 32. Bxc2 {[%clk 0:00:34]} 32... Kg7 {[%clk 0:01:01.6]} 33. Rd1
{[%clk 0:00:28.9]} 33... Bd6 {[%clk 0:00:58.4]} 34. b3 {[%clk 0:00:24.8]} 34...
Nb6 {[%clk 0:00:45.1]} 35. Ra6 {[%clk 0:00:20.4]} 35... Bc7 {[%clk 0:00:43.1]}
36. Rd3 {[%clk 0:00:16.6]} 36... Nd5 {[%clk 0:00:40]} 37. Ra8 {[%clk 0:00:15.2]}
37... Nf4 {[%clk 0:00:37.4]} 38. Rf3 {[%clk 0:00:15.1]} 38... g5 {[%clk
0:00:28.5]} 39. Bg3 {[%clk 0:00:15.1]} 39... Ne2+ {[%clk 0:00:28.5]} 40. Kh2
{[%clk 0:00:11.7]} 40... Bxg3+ {[%clk 0:00:28.4]} 41. fxg3 {[%clk 0:00:12.6]}
41... Qg1# {[%clk 0:00:28.5]} 0-1

[Event "Early-Titled-Tuesday-Blitz-February-13-2024"]
[Site "Chess.com"]
[Date "2024.02.13"]
[Round "8"]
[White "Bilan_Danila"]
[Black "BallottiLuca"]
[Result "1-0"]
[WhiteElo "2553"]
[BlackElo "2375"]
[TimeControl "180+1"]
[EndTime "9:32:09 PST"]
[Termination "Bilan_Danila won on time"]

1. d4 {[%clk 0:03:00.9]} 1... Nf6 {[%clk 0:02:59.3]} 2. Nf3 {[%clk 0:02:59.6]}
2... g6 {[%clk 0:02:59.6]} 3. Bg5 {[%clk 0:02:58.9]} 3... Bg7 {[%clk 0:02:59.7]}
4. c3 {[%clk 0:02:59.5]} 4... O-O {[%clk 0:02:56.9]} 5. Nbd2 {[%clk 0:02:59.1]}
5... d6 {[%clk 0:02:52.9]} 6. e4 {[%clk 0:02:58.8]} 6... c5 {[%clk 0:02:52.1]}
7. dxc5 {[%clk 0:02:59.7]} 7... dxc5 {[%clk 0:02:50.1]} 8. Bc4 {[%clk
0:03:00.4]} 8... Nc6 {[%clk 0:02:47.5]} 9. O-O {[%clk 0:03:00.4]} 9... Qc7
{[%clk 0:02:45.5]} 10. Qc2 {[%clk 0:03:00.4]} 10... b6 {[%clk 0:02:42.4]} 11.
Rfe1 {[%clk 0:03:00.4]} 11... Nh5 {[%clk 0:02:39.4]} 12. Nf1 {[%clk 0:02:56.5]}
12... Bb7 {[%clk 0:02:32.3]} 13. Rad1 {[%clk 0:02:51.7]} 13... Rad8 {[%clk
0:02:25]} 14. Ne3 {[%clk 0:02:49.9]} 14... Ne5 {[%clk 0:01:57.9]} 15. Be2 {[%clk
0:02:07.2]} 15... Nxf3+ {[%clk 0:01:57]} 16. Bxf3 {[%clk 0:02:04.3]} 16... Be5
{[%clk 0:01:57.6]} 17. Bxh5 {[%clk 0:01:46.4]} 17... gxh5 {[%clk 0:01:47.5]} 18.
Nf5 {[%clk 0:01:39]} 18... Rxd1 {[%clk 0:01:16.4]} 19. Qxd1 {[%clk 0:01:35.2]}
19... f6 {[%clk 0:01:00.8]} 20. Bh6 {[%clk 0:01:15.4]} 20... e6 {[%clk
0:00:46.6]} 21. Ng3 {[%clk 0:00:48.1]} 21... Bxg3 {[%clk 0:00:43.8]} 22. hxg3
{[%clk 0:00:45.7]} 22... Rd8 {[%clk 0:00:31]} 23. Qxh5 {[%clk 0:00:45.3]} 23...
Qf7 {[%clk 0:00:31.6]} 24. Qg4+ {[%clk 0:00:39.7]} 24... Kh8 {[%clk 0:00:29.9]}
25. e5 {[%clk 0:00:36.1]} 25... f5 {[%clk 0:00:23.6]} 26. Qh4 {[%clk 0:00:33.2]}
26... Rg8 {[%clk 0:00:15.8]} 27. Bg5 {[%clk 0:00:30.8]} 27... Rg6 {[%clk
0:00:14.7]} 28. Bf6+ {[%clk 0:00:26.9]} 28... Kg8 {[%clk 0:00:14.2]} 29. Rd1
{[%clk 0:00:27.2]} 29... Rxf6 {[%clk 0:00:09]} 30. exf6 {[%clk 0:00:24.9]} 30...
h5 {[%clk 0:00:07]} 31. Qg5+ {[%clk 0:00:19.1]} 31... Kh7 {[%clk 0:00:07]} 32.
Rd8 {[%clk 0:00:17.4]} 32... Bd5 {[%clk 0:00:03.6]} 33. Re8 {[%clk 0:00:12.1]}
1-0

[Event "Early-Titled-Tuesday-Blitz-February-13-2024"]
[Site "Chess.com"]
[Date "2024.02.13"]
[Round "8"]
[White "Grossboss19"]
[Black "Som2310"]
[Result "0-1"]
[WhiteElo "2616"]
[BlackElo "2807"]
[TimeControl "180+1"]
[EndTime "9:32:10 PST"]
[Termination "Som2310 won by resignation"]

1. d4 {[%clk 0:02:57.8]} 1... Nf6 {[%clk 0:02:59.6]} 2. Nc3 {[%clk 0:02:55.1]}
2... d5 {[%clk 0:02:58.6]} 3. Bf4 {[%clk 0:02:51.5]} 3... c5 {[%clk 0:02:58.6]}
4. e4 {[%clk 0:02:44.9]} 4... Nxe4 {[%clk 0:02:54.6]} 5. Nxe4 {[%clk 0:02:41.9]}
5... dxe4 {[%clk 0:02:54.7]} 6. dxc5 {[%clk 0:02:42.1]} 6... Qa5+ {[%clk
0:02:52.8]} 7. c3 {[%clk 0:02:41.8]} 7... Qxc5 {[%clk 0:02:52.9]} 8. Qa4+ {[%clk
0:02:42.1]} 8... Nc6 {[%clk 0:02:52.7]} 9. Qxe4 {[%clk 0:02:41.7]} 9... Bf5
{[%clk 0:02:52.8]} 10. Qe3 {[%clk 0:02:39.4]} 10... e5 {[%clk 0:02:49.4]} 11.
Nf3 {[%clk 0:02:28.3]} 11... O-O-O {[%clk 0:02:31.8]} 12. Qxc5 {[%clk
0:02:13.2]} 12... Bxc5 {[%clk 0:02:31.3]} 13. Be3 {[%clk 0:02:13.9]} 13... Bxe3
{[%clk 0:02:29.3]} 14. fxe3 {[%clk 0:02:14.8]} 14... f6 {[%clk 0:02:28.7]} 15.
Rd1 {[%clk 0:02:11.1]} 15... Ne7 {[%clk 0:02:25.3]} 16. Bc4 {[%clk 0:02:06.6]}
16... Be4 {[%clk 0:02:19.9]} 17. Kf2 {[%clk 0:02:02.1]} 17... Kc7 {[%clk
0:02:16.7]} 18. Bb3 {[%clk 0:01:52.2]} 18... g5 {[%clk 0:02:12.5]} 19. Rxd8
{[%clk 0:01:46.8]} 19... Rxd8 {[%clk 0:02:12.1]} 20. Rd1 {[%clk 0:01:47.5]}
20... Rxd1 {[%clk 0:02:10.5]} 21. Bxd1 {[%clk 0:01:48.4]} 21... Kd6 {[%clk
0:02:09.7]} 22. h4 {[%clk 0:01:46.6]} 22... h6 {[%clk 0:02:04.8]} 23. hxg5
{[%clk 0:01:46.7]} 23... hxg5 {[%clk 0:02:05]} 24. Nd2 {[%clk 0:01:41.8]} 24...
Bd5 {[%clk 0:02:03.8]} 25. a3 {[%clk 0:01:40.9]} 25... f5 {[%clk 0:01:58.5]} 26.
e4 {[%clk 0:01:25.5]} 26... fxe4 {[%clk 0:01:49.2]} 27. Bg4 {[%clk 0:01:23.2]}
27... e3+ {[%clk 0:01:43.1]} 28. Kxe3 {[%clk 0:01:22.9]} 28... Bxg2 {[%clk
0:01:43.1]} 29. Nc4+ {[%clk 0:01:23.2]} 29... Kd5 {[%clk 0:01:42.6]} 30. Nd2
{[%clk 0:01:17.8]} 30... b6 {[%clk 0:01:30.4]} 31. a4 {[%clk 0:01:09.4]} 31...
Nc6 {[%clk 0:01:23.5]} 32. b4 {[%clk 0:00:54.3]} 32... a5 {[%clk 0:01:17.8]} 33.
Bh5 {[%clk 0:00:30.4]} 33... axb4 {[%clk 0:01:09.9]} 34. Bf7+ {[%clk 0:00:29.7]}
34... Kc5 {[%clk 0:01:09.4]} 35. cxb4+ {[%clk 0:00:24.3]} 35... Kxb4 {[%clk
0:01:09.4]} 36. Nc4 {[%clk 0:00:22.9]} 36... Kc5 {[%clk 0:01:09.7]} 37. Nb2
{[%clk 0:00:17.4]} 37... Bf1 {[%clk 0:01:07.9]} 38. Nd1 {[%clk 0:00:14.5]} 38...
Bg2 {[%clk 0:01:02.8]} 39. Nc3 {[%clk 0:00:14]} 39... Nb4 {[%clk 0:01:00.8]} 40.
Nb1 {[%clk 0:00:09.2]} 40... Nc2+ {[%clk 0:01:00.1]} 41. Kd2 {[%clk 0:00:09]}
41... Nd4 {[%clk 0:00:59.5]} 42. Ke3 {[%clk 0:00:09.1]} 42... Kb4 {[%clk
0:00:59.2]} 43. Be8 {[%clk 0:00:06.9]} 43... Bc6 {[%clk 0:00:59]} 44. Bxc6
{[%clk 0:00:04.4]} 44... Nxc6 {[%clk 0:00:59]} 45. Ke4 {[%clk 0:00:03.3]} 45...
Kxa4 {[%clk 0:00:59.2]} 46. Kf5 {[%clk 0:00:03.9]} 46... Kb3 {[%clk 0:00:57.4]}
47. Nd2+ {[%clk 0:00:04]} 47... Kc3 {[%clk 0:00:54.1]} 48. Ne4+ {[%clk
0:00:03.7]} 48... Kc2 {[%clk 0:00:52.6]} 49. Kxg5 {[%clk 0:00:02.9]} 49... b5
{[%clk 0:00:53]} 50. Nc5 {[%clk 0:00:01.6]} 50... b4 {[%clk 0:00:53.2]} 51. Kf5
{[%clk 0:00:02.2]} 51... b3 {[%clk 0:00:53.5]} 52. Na4 {[%clk 0:00:02.4]} 52...
b2 {[%clk 0:00:53.6]} 53. Nxb2 {[%clk 0:00:03.3]} 53... Kxb2 {[%clk 0:00:53.9]}
54. Ke4 {[%clk 0:00:04.2]} 54... Kc3 {[%clk 0:00:54.2]} 55. Kd5 {[%clk
0:00:05.1]} 55... Kd3 {[%clk 0:00:54.6]} 0-1

[Event "Early-Titled-Tuesday-Blitz-February-13-2024"]
[Site "Chess.com"]
[Date "2024.02.13"]
[Round "8"]
[White "Brahianzevich"]
[Black "krasavetc"]
[Result "0-1"]
[WhiteElo "2453"]
[BlackElo "2628"]
[TimeControl "180+1"]
[EndTime "9:32:12 PST"]
[Termination "krasavetc won on time"]

1. e4 {[%clk 0:02:57.6]} 1... c5 {[%clk 0:02:58.2]} 2. Nf3 {[%clk 0:02:56.9]}
2... Nc6 {[%clk 0:02:58.1]} 3. d4 {[%clk 0:02:57.2]} 3... cxd4 {[%clk
0:02:58.3]} 4. Nxd4 {[%clk 0:02:58.1]} 4... Nf6 {[%clk 0:02:58.8]} 5. Nc3 {[%clk
0:02:58.1]} 5... e5 {[%clk 0:02:59.1]} 6. Ndb5 {[%clk 0:02:58.6]} 6... d6 {[%clk
0:02:59.1]} 7. Bg5 {[%clk 0:02:58.2]} 7... a6 {[%clk 0:02:59.5]} 8. Na3 {[%clk
0:02:58.6]} 8... b5 {[%clk 0:03:00.1]} 9. Nd5 {[%clk 0:02:58.9]} 9... Be7 {[%clk
0:03:00.2]} 10. Bxf6 {[%clk 0:02:59.1]} 10... Bxf6 {[%clk 0:02:59.9]} 11. c4
{[%clk 0:03:00]} 11... b4 {[%clk 0:02:59.8]} 12. Nc2 {[%clk 0:02:59.6]} 12... a5
{[%clk 0:02:59.7]} 13. Qf3 {[%clk 0:02:56]} 13... Be6 {[%clk 0:02:47.3]} 14. Rd1
{[%clk 0:02:54.5]} 14... Bg5 {[%clk 0:02:16.8]} 15. h4 {[%clk 0:02:10.3]} 15...
Bh6 {[%clk 0:02:16.3]} 16. g4 {[%clk 0:02:01.1]} 16... Bf4 {[%clk 0:02:15.9]}
17. Nxf4 {[%clk 0:01:59.8]} 17... exf4 {[%clk 0:02:16.8]} 18. Qxf4 {[%clk
0:02:00.3]} 18... O-O {[%clk 0:02:05.6]} 19. Be2 {[%clk 0:01:57.6]} 19... a4
{[%clk 0:02:03.3]} 20. Ne3 {[%clk 0:01:35.3]} 20... b3 {[%clk 0:01:32.5]} 21. a3
{[%clk 0:01:31.8]} 21... Qa5+ {[%clk 0:01:32]} 22. Kf1 {[%clk 0:01:31.8]} 22...
Qe5 {[%clk 0:01:29.4]} 23. Qxe5 {[%clk 0:01:14.3]} 23... dxe5 {[%clk 0:01:30.3]}
24. Nd5 {[%clk 0:01:05.8]} 24... Nd4 {[%clk 0:01:28.7]} 25. Rxd4 {[%clk
0:00:49]} 25... exd4 {[%clk 0:01:27.5]} 26. Kg2 {[%clk 0:00:41.9]} 26... f5
{[%clk 0:01:10.4]} 27. Nc7 {[%clk 0:00:28.5]} 27... Bd7 {[%clk 0:00:37.2]} 28.
Nxa8 {[%clk 0:00:28.2]} 28... Bc6 {[%clk 0:00:37.5]} 29. Nb6 {[%clk 0:00:18.8]}
29... fxe4 {[%clk 0:00:37.6]} 30. Rd1 {[%clk 0:00:12.8]} 30... d3 {[%clk
0:00:35.5]} 31. Bf1 {[%clk 0:00:04.8]} 31... e3+ {[%clk 0:00:21.2]} 32. Nd5
{[%clk 0:00:05.3]} 32... Rxf2+ {[%clk 0:00:16.4]} 33. Kg3 {[%clk 0:00:05.9]}
33... Bxd5 {[%clk 0:00:15.3]} 34. Bxd3 {[%clk 0:00:01.2]} 34... Be6 {[%clk
0:00:13.8]} 0-1

[Event "Early-Titled-Tuesday-Blitz-February-13-2024"]
[Site "Chess.com"]
[Date "2024.02.13"]
[Round "8"]
[White "mertfelin"]
[Black "viktorskliarov"]
[Result "0-1"]
[WhiteElo "2331"]
[BlackElo "2603"]
[TimeControl "180+1"]
[EndTime "9:32:18 PST"]
[Termination "viktorskliarov won by resignation"]

1. e4 {[%clk 0:03:00.4]} 1... c5 {[%clk 0:02:59.9]} 2. Nf3 {[%clk 0:03:00.9]}
2... Nc6 {[%clk 0:03:00]} 3. Bb5 {[%clk 0:03:00.5]} 3... e6 {[%clk 0:03:00.1]}
4. O-O {[%clk 0:03:00.5]} 4... Nge7 {[%clk 0:03:00]} 5. d4 {[%clk 0:03:01.2]}
5... cxd4 {[%clk 0:02:59.7]} 6. Nxd4 {[%clk 0:03:02.1]} 6... Qb6 {[%clk
0:02:59.9]} 7. Nxc6 {[%clk 0:03:01.3]} 7... dxc6 {[%clk 0:03:00.2]} 8. Be2
{[%clk 0:03:01.8]} 8... e5 {[%clk 0:02:57.6]} 9. Nd2 {[%clk 0:02:50.1]} 9... Ng6
{[%clk 0:02:53.4]} 10. Nc4 {[%clk 0:02:49.5]} 10... Qc7 {[%clk 0:02:49.8]} 11.
Be3 {[%clk 0:02:47.6]} 11... Be7 {[%clk 0:02:45.5]} 12. a4 {[%clk 0:02:47.3]}
12... O-O {[%clk 0:02:44.3]} 13. c3 {[%clk 0:02:45.5]} 13... Be6 {[%clk
0:02:41.4]} 14. Qc2 {[%clk 0:02:41.4]} 14... Nf4 {[%clk 0:02:31.4]} 15. Bxf4
{[%clk 0:02:38.9]} 15... exf4 {[%clk 0:02:31.4]} 16. b3 {[%clk 0:02:20.3]} 16...
f5 {[%clk 0:01:49.1]} 17. e5 {[%clk 0:02:13.2]} 17... g5 {[%clk 0:01:22.8]} 18.
Rfe1 {[%clk 0:02:04.1]} 18... Rad8 {[%clk 0:01:13.7]} 19. Rad1 {[%clk
0:01:38.9]} 19... Kg7 {[%clk 0:01:12.6]} 20. Qc1 {[%clk 0:01:21.5]} 20... a5
{[%clk 0:01:08.7]} 21. Bf1 {[%clk 0:01:17.1]} 21... h6 {[%clk 0:00:52.6]} 22.
Qb2 {[%clk 0:01:11.9]} 22... Rxd1 {[%clk 0:00:36.7]} 23. Rxd1 {[%clk 0:01:12.5]}
23... Rd8 {[%clk 0:00:37]} 24. Re1 {[%clk 0:01:01]} 24... b5 {[%clk 0:00:25.9]}
25. axb5 {[%clk 0:00:57.8]} 25... cxb5 {[%clk 0:00:26.1]} 26. Nd6 {[%clk
0:00:58.5]} 26... b4 {[%clk 0:00:16.3]} 27. cxb4 {[%clk 0:00:43.7]} 27... axb4
{[%clk 0:00:15.5]} 28. Rc1 {[%clk 0:00:41.8]} 28... Qb6 {[%clk 0:00:13.7]} 29.
Bc4 {[%clk 0:00:38.7]} 29... Bxc4 {[%clk 0:00:09.8]} 30. Nxc4 {[%clk 0:00:36.1]}
30... Qd4 {[%clk 0:00:08.9]} 31. Qe2 {[%clk 0:00:34.8]} 31... g4 {[%clk
0:00:06.6]} 32. h3 {[%clk 0:00:24.8]} 32... h5 {[%clk 0:00:06.5]} 33. Qc2 {[%clk
0:00:20.4]} 33... Qd3 {[%clk 0:00:06.3]} 34. Qa2 {[%clk 0:00:17]} 34... gxh3
{[%clk 0:00:06.2]} 35. gxh3 {[%clk 0:00:17.5]} 35... Qxh3 {[%clk 0:00:05.7]} 36.
Qa7 {[%clk 0:00:15]} 36... Kh8 {[%clk 0:00:05.6]} 0-1